fUST/lending_fUST_20250603
["ID","MTS","AMOUNT","RATE_DAILY","PERIOD"]
[363929911,1748934642816,-420.0,0.00016438,2]
[363929912,1748934642826,-526.39,0.00016438,2]
[363929913,1748934642836,-434.82147144,0.00016438,2]
[363929914,1748934642846,-430.0,0.00016438,2]
[363929915,1748934642856,-440.0,0.00016438,2]
[363929916,1748934642866,-430.0,0.00016438,2]
[363929917,1748934642875,-440.0,0.00016438,2]
[363929918,1748934642885,-430.0,0.00016438,2]
[363929919,1748934642894,-440.0,0.00016438,2]
[363929920,1748934642904,-440.0,0.00016438,2]
[363929921,1748934642913,-440.0,0.00016438,2]
[363929922,1748934642922,-432.03593407,0.00016438,2]
[363929923,1748934642932,-440.0,0.00016438,2]
[363929924,1748934642941,-875.8,0.00016711,2]
[363929925,1748934642951,-875.8,0.00016711,2]
[363929926,1748934642961,-420.0,0.00016712,2]
[363929927,1748934642971,-420.0,0.00016712,2]
[363929928,1748934642980,-440.0,0.00016712,2]
[363929929,1748934642990,-440.0,0.00016712,2]
[363929930,1748934642999,-440.0,0.00016712,2]
[363929931,1748934643008,-440.0,0.00016712,2]
[363929932,1748934643019,-400.0,0.00016712,2]
[363929933,1748934643028,-440.0,0.00016712,2]
[363929934,1748934643037,-440.0,0.00016712,2]
[363929935,1748934643047,-420.0,0.00016712,2]
[363929936,1748934643057,-420.0,0.00016712,2]
[363929937,1748934643069,-440.0,0.00016712,2]
[363929938,1748934643078,-536.87,0.00016712,2]
[363929939,1748934643088,-420.0,0.00016712,2]
[363929940,1748934643098,-440.0,0.00016712,2]
[363929942,1748934643108,-389.04083678,0.00016712,2]
[363929944,1748934643117,-461.26695898,0.00016712,2]
[363929946,1748934643127,-440.0,0.00016712,2]
[363929948,1748934643136,-440.0,0.00016712,2]
[363929950,1748934643145,-440.0,0.00016712,2]
[363929952,1748934643155,-440.0,0.00016712,2]
[363929954,1748934643165,-440.0,0.00016712,2]
[363929956,1748934643174,-440.0,0.00016712,2]
[363929958,1748934643182,-748.49,0.00016712,2]
[363929959,1748934643191,-430.0,0.00016712,2]
[363929961,1748934643201,-440.0,0.00016712,2]
[363929963,1748934643210,-440.0,0.00016712,2]
[363929965,1748934643219,-440.0,0.00016712,2]
[363929967,1748934643229,-440.0,0.00016712,2]
[363929969,1748934643238,-440.0,0.00016712,2]
[363929971,1748934643247,-413.94459992,0.00016712,2]
[363929972,1748934643256,-420.0,0.00016712,2]
[363929973,1748934643266,-410.0,0.00016712,2]
[363929974,1748934643275,-440.0,0.00016712,2]
[363929975,1748934643285,-830.12,0.00016712,2]
[363929976,1748934643294,-440.0,0.00016712,2]
[363929977,1748934643303,-440.0,0.00016712,2]
[363929978,1748934643313,-608.79,0.00016712,2]
[363929979,1748934643322,-509.91,0.00016712,2]
[363929980,1748934643331,-440.0,0.00016712,2]
[363929981,1748934643341,-289.9389057,0.00016712,2]
[363929982,1748934643351,-1744.81,0.00016712,2]
[363929983,1748934643361,-1316.31,0.00016712,2]
[363929984,1748934643370,-440.0,0.00016712,2]
[363929985,1748934643380,-440.0,0.00016712,2]
[363929986,1748934643390,-447.75,0.00016712,2]
[363929987,1748934643400,-440.0,0.00016712,2]
[363929988,1748934643411,-440.0,0.00016712,2]
[363929989,1748934643423,-440.0,0.00016712,2]
[363929990,1748934643433,-302.05228082,0.00016712,2]
[363929991,1748934643443,-440.0,0.00016712,2]
[363929992,1748934643453,-2106.16,0.00016712,2]
[363929993,1748934643463,-440.0,0.00016712,2]
[363929994,1748934643473,-430.0,0.00016712,2]
[363929995,1748934643482,-440.0,0.00016712,2]
[363929996,1748934643492,-210.52098603,0.00016712,2]
[363929997,1748934643501,-410.0,0.00016712,2]
[363929998,1748934643510,-580.42,0.00016712,2]
[363929999,1748934643521,-440.0,0.00016712,2]
[363930000,1748934643531,-440.0,0.00016712,2]
[363930001,1748934643542,-417.85237846,0.00016712,2]
[363930002,1748934643551,-1305.99,0.00016712,2]
[363930003,1748934643562,-412.81831017,0.00016712,2]
[363930004,1748934643571,-2155.17,0.00016712,2]
[363930005,1748934643583,-420.0,0.00016712,2]
[363930006,1748934643593,-1851.23,0.00016712,2]
[363930007,1748934643604,-925.26,0.00016712,2]
[363930008,1748934643614,-440.0,0.00016712,2]
[363930009,1748934643624,-440.0,0.00016712,2]
[363930010,1748934643634,-2080.5,0.00016712,2]
[363930011,1748934643644,-928.26,0.00016712,2]
[363930012,1748934643654,-440.0,0.00016712,2]
[363930013,1748934643663,-496.24,0.00016712,2]
[363930014,1748934643673,-448.96,0.00016712,2]
[363930015,1748934643683,-615.52,0.00016712,2]
[363930016,1748934643692,-440.0,0.00016712,2]
[363930017,1748934643702,-440.0,0.00016712,2]
[363930018,1748934643712,-410.0,0.00016712,2]
[363930019,1748934643721,-1764.12,0.00016712,2]
[363930020,1748934643731,-440.0,0.00016712,2]
[363930021,1748934643739,-440.0,0.00016712,2]
[363930022,1748934643748,-440.0,0.00016712,2]
[363930023,1748934643758,-440.0,0.00016712,2]
[363930024,1748934643767,-440.0,0.00016712,2]
[363930025,1748934643777,-440.0,0.00016712,2]
[363930026,1748934643786,-440.0,0.00016712,2]
[363930027,1748934643794,-440.0,0.00016712,2]
[363930028,1748934643804,-881.76,0.00016712,2]
[363930029,1748934643814,-440.0,0.00016712,2]
[363930030,1748934643824,-440.0,0.00016712,2]
[363930031,1748934643834,-440.0,0.00016712,2]
[363930032,1748934643844,-440.0,0.00016712,2]
[363930033,1748934643853,-410.0,0.00016712,2]
[363930034,1748934643863,-756.69,0.00016712,2]
[363930035,1748934643872,-1028.49,0.00016712,2]
[363930036,1748934643881,-440.0,0.00016712,2]
[363930037,1748934643891,-440.0,0.00016712,2]
[363930038,1748934643901,-440.0,0.00016712,2]
[363930039,1748934643911,-526.39,0.00016712,2]
[363930040,1748934643920,-440.0,0.00016712,2]
[363930041,1748934643929,-440.0,0.00016712,2]
[363930042,1748934643939,-440.0,0.00016712,2]
[363930043,1748934643949,-440.0,0.00016712,2]
[363930044,1748934643960,-440.0,0.00016712,2]
[363930045,1748934643969,-1981.43159199,0.000169,2]
[363930046,1748934643979,-500.0,0.00016918,2]
[363930047,1748934643988,-500.0,0.00016918,2]
[363930048,1748934643998,-875.8,0.00016985,2]
[363930049,1748934644007,-875.8,0.00016985,2]
[363930050,1748934644017,-500.0,0.00016986,2]
[363930051,1748934644026,-500.0,0.00016986,2]
[363930052,1748934644036,-502.34771245,0.00016986,2]
[363930053,1748934644046,-500.0,0.00016986,2]
[363930054,1748934644056,-500.0,0.00016986,2]
[363930055,1748934644069,-500.0,0.00016986,2]
[363930056,1748934644079,-400.0,0.00016986,2]
[363930057,1748934644088,-440.0,0.00016986,2]
[363930058,1748934644098,-440.0,0.00016986,2]
[363930059,1748934644109,-440.0,0.00016986,2]
[363930060,1748934644118,-440.0,0.00016986,2]
[363930061,1748934644128,-546.31,0.00016986,2]
[363930062,1748934644140,-370.0,0.00016986,2]
[363930063,1748934644149,-440.0,0.00016986,2]
[363930064,1748934644159,-440.0,0.00016986,2]
[363930065,1748934644168,-440.0,0.00016986,2]
[363930066,1748934644177,-440.0,0.00016986,2]
[363930067,1748934644186,-440.0,0.00016986,2]
[363930068,1748934644194,-440.0,0.00016986,2]
[363930069,1748934644203,-440.0,0.00016986,2]
[363930070,1748934644212,-748.49,0.00016986,2]
[363930071,1748934644220,-410.0,0.00016986,2]
[363930072,1748934644228,-282.68,0.00016986,2]
[363930073,1748934644237,-440.0,0.00016986,2]
[363930074,1748934644245,-440.0,0.00016986,2]
[363930075,1748934644254,-440.0,0.00016986,2]
[363930076,1748934644264,-440.0,0.00016986,2]
[363930077,1748934644272,-830.12,0.00016986,2]
[363930078,1748934644281,-440.0,0.00016986,2]
[363930079,1748934644290,-440.0,0.00016986,2]
[363930080,1748934644299,-608.79,0.00016986,2]
[363930081,1748934644308,-440.0,0.00016986,2]
[363930082,1748934644317,-1744.81,0.00016986,2]
[363930083,1748934644326,-1316.31,0.00016986,2]
[363930084,1748934644335,-440.0,0.00016986,2]
[363930085,1748934644344,-440.0,0.00016986,2]
[363930086,1748934644353,-447.75,0.00016986,2]
[363930087,1748934644362,-420.0,0.00016986,2]
[363930088,1748934644370,-440.0,0.00016986,2]
[363930089,1748934644379,-440.0,0.00016986,2]
[363930090,1748934644389,-440.0,0.00016986,2]
[363930091,1748934644401,-2106.16,0.00016986,2]
[363930092,1748934644412,-440.0,0.00016986,2]
[363930093,1748934644423,-440.0,0.00016986,2]
[363930094,1748934644433,-440.0,0.00016986,2]
[363930095,1748934644443,-440.0,0.00016986,2]
[363930096,1748934644454,-1305.99,0.00016986,2]
[363930097,1748934644463,-2155.17,0.00016986,2]
[363930098,1748934644472,-1851.23,0.00016986,2]
[363930099,1748934644481,-925.26,0.00016986,2]
[363930100,1748934644491,-440.0,0.00016986,2]
[363930101,1748934644500,-440.0,0.00016986,2]
[363930102,1748934644510,-2080.5,0.00016986,2]
[363930103,1748934644519,-928.26,0.00016986,2]
[363930104,1748934644529,-440.0,0.00016986,2]
[363930105,1748934644539,-496.24,0.00016986,2]
[363930106,1748934644549,-448.96,0.00016986,2]
[363930107,1748934644559,-615.52,0.00016986,2]
[363930108,1748934644568,-402.73058149,0.00016986,2]
[363930109,1748934644578,-393.98736959,0.00016986,2]
[363930110,1748934644588,-1764.12,0.00016986,2]
[363930111,1748934644597,-440.0,0.00016986,2]
[363930112,1748934644607,-440.0,0.00016986,2]
[363930113,1748934644617,-440.0,0.00016986,2]
[363930114,1748934644627,-440.0,0.00016986,2]
[363930115,1748934644636,-440.0,0.00016986,2]
[363930116,1748934644744,-410.0,0.00016986,2]
[363930117,1748934644754,-440.0,0.00016986,2]
[363930118,1748934644764,-410.0,0.00016986,2]
[363930119,1748934644774,-881.76,0.00016986,2]
[363930120,1748934644783,-440.0,0.00016986,2]
[363930121,1748934644792,-389.26708582,0.00016986,2]
[363930122,1748934644801,-170.29176856,0.00016986,2]
[363930123,1748934644810,-440.0,0.00016986,2]
[363930124,1748934644820,-756.69,0.00016986,2]
[363930125,1748934644829,-1028.49,0.00016986,2]
[363930126,1748934644838,-484.32630807,0.00016986,2]
[363930127,1748934644848,-370.0,0.00016986,2]
[363930128,1748934644857,-440.0,0.00016986,2]
[363930129,1748934644866,-526.39,0.00016986,2]
[363930130,1748934644875,-222.44,0.00016986,2]
[363930131,1748934644884,-440.0,0.00016986,2]
[363930132,1748934644894,-440.0,0.00016986,2]
[363930133,1748934644903,-299.47771647,0.00016986,2]
[363930134,1748934644912,-440.0,0.00016986,2]
[363930135,1748934644921,-500.0,0.00017014,2]
[363930136,1748934644930,-500.0,0.00017014,2]
[363930137,1748934644939,-500.0,0.00017014,2]
[363930138,1748934644948,-500.0,0.00017053,2]
[363930139,1748934644958,-500.0,0.00017053,2]
[363930140,1748934644967,-500.0,0.00017053,2]
[363930141,1748934644977,-500.0,0.00017053,2]
[363930142,1748934644986,-500.0,0.00017053,2]
[363930143,1748934644995,-500.0,0.00017053,2]
[363930144,1748934645004,-420.0,0.00017108,2]
[363930145,1748934645014,-1981.43159174,0.00017141,2]
[363930146,1748934645023,-500.0,0.00017152,2]
[363930147,1748934645032,-875.8,0.00017159,2]
[363930148,1748934645041,-443.46684055,0.0001718,2]
[363930149,1748934645050,-3616.53344057,0.00017228,2]
[363930150,1748934645062,-875.8,0.00017259,2]
[363930151,1748934645072,-440.0,0.0001726,2]
[363930152,1748934645081,-440.0,0.0001726,2]
[363930153,1748934645090,-420.0,0.0001726,2]
[363930154,1748934645100,-440.0,0.0001726,2]
[363930155,1748934645109,-440.0,0.0001726,2]
[363930156,1748934645118,-440.0,0.0001726,2]
[363930157,1748934645127,-440.0,0.0001726,2]
[363930158,1748934645137,-440.0,0.0001726,2]
[363930159,1748934645146,-440.0,0.0001726,2]
[363930160,1748934645155,-440.0,0.0001726,2]
[363930161,1748934645164,-440.0,0.0001726,2]
[363930162,1748934645173,-748.49,0.0001726,2]
[363930163,1748934645182,-440.0,0.0001726,2]
[363930164,1748934645191,-440.0,0.0001726,2]
[363930165,1748934645200,-440.0,0.0001726,2]
[363930166,1748934645210,-440.0,0.0001726,2]
[363930167,1748934645220,-830.12,0.0001726,2]
[363930168,1748934645229,-408.13232613,0.0001726,2]
[363930169,1748934645238,-440.0,0.0001726,2]
[363930170,1748934645248,-608.79,0.0001726,2]
[363930171,1748934645257,-440.0,0.0001726,2]
[363930172,1748934645267,-1744.81,0.0001726,2]
[363930173,1748934645276,-1316.31,0.0001726,2]
[363930174,1748934645285,-440.0,0.0001726,2]
[363930175,1748934645294,-427.8,0.0001726,2]
[363930176,1748934645304,-447.75,0.0001726,2]
[363930177,1748934645313,-440.0,0.0001726,2]
[363930178,1748934645323,-440.0,0.0001726,2]
[363930179,1748934645340,-2106.16,0.0001726,2]
[363930180,1748934645353,-440.0,0.0001726,2]
[363930181,1748934645364,-440.0,0.0001726,2]
[363930182,1748934645374,-440.0,0.0001726,2]
[363930183,1748934645384,-440.0,0.0001726,2]
[363930184,1748934645394,-1305.99,0.0001726,2]
[363930185,1748934645404,-2155.17,0.0001726,2]
[363930186,1748934645414,-1851.23,0.0001726,2]
[363930187,1748934645425,-925.26,0.0001726,2]
[363930188,1748934645435,-404.95509405,0.0001726,2]
[363930189,1748934645446,-256.17107756,0.0001726,2]
[363930190,1748934645456,-2080.5,0.0001726,2]
[363930191,1748934645466,-928.26,0.0001726,2]
[363930192,1748934645476,-440.0,0.0001726,2]
[363930193,1748934645486,-496.24,0.0001726,2]
[363930194,1748934645496,-448.96,0.0001726,2]
[363930195,1748934645507,-615.52,0.0001726,2]
[363930196,1748934645517,-1764.12,0.0001726,2]
[363930197,1748934645527,-440.0,0.0001726,2]
[363930198,1748934645538,-440.0,0.0001726,2]
[363930199,1748934645548,-440.0,0.0001726,2]
[363930200,1748934645559,-440.0,0.0001726,2]
[363930201,1748934645569,-440.0,0.0001726,2]
[363930202,1748934645579,-440.0,0.0001726,2]
[363930203,1748934645590,-881.76,0.0001726,2]
[363930204,1748934645600,-440.0,0.0001726,2]
[363930205,1748934645610,-756.69,0.0001726,2]
[363930206,1748934645620,-1028.49,0.0001726,2]
[363930207,1748934645629,-440.0,0.0001726,2]
[363930208,1748934645639,-526.39,0.0001726,2]
[363930209,1748934645649,-440.0,0.0001726,2]
[363930210,1748934645659,-270.80297109,0.0001726,2]
[363930211,1748934645669,-440.0,0.0001726,2]
[363930212,1748934645679,-1981.43159174,0.00017383,2]
[363930214,1748934645689,-500.0,0.000174,2]
[363930215,1748934645699,-191.31529816,0.00017411,2]
[363930216,1748934645710,-1000.0,0.00017466,2]
[363930217,1748934645720,-875.8,0.00017532,2]
[363930219,1748934645730,-875.8,0.00017533,2]
[363930220,1748934645740,-1004.90978063,0.00017534,2]
[363930221,1748934645750,-1000.0,0.00017534,2]
[363930222,1748934645760,-1000.0,0.00017534,2]
[363930224,1748934645770,-788.63107863,0.00017534,2]
[363930225,1748934645781,-286.846693,0.00017534,2]
[363930227,1748934645791,-151.0,0.00017534,2]
[363930229,1748934645801,-151.0,0.00017534,2]
[363930231,1748934645811,-151.0,0.00017534,2]
[363930233,1748934645822,-335.359597,0.00017534,2]
[363930234,1748934645831,-335.359597,0.00017534,2]
[363930236,1748934645841,-440.0,0.00017534,2]
[363930238,1748934645851,-440.0,0.00017534,2]
[363930240,1748934645861,-440.0,0.00017534,2]
[363930242,1748934645871,-440.0,0.00017534,2]
[363930243,1748934645880,-440.0,0.00017534,2]
[363930245,1748934645891,-440.0,0.00017534,2]
[363930247,1748934645901,-440.0,0.00017534,2]
[363930249,1748934645911,-357.29,0.00017534,2]
[363930250,1748934645921,-440.0,0.00017534,2]
[363930252,1748934645931,-440.0,0.00017534,2]
[363930254,1748934645941,-748.49,0.00017534,2]
[363930256,1748934645955,-337.19311173,0.00017534,2]
[363930257,1748934645965,-440.0,0.00017534,2]
[363930259,1748934645975,-463.9113173,0.00017534,2]
[363930261,1748934645985,-440.0,0.00017534,2]
[363930263,1748934645995,-830.12,0.00017534,2]
[363930264,1748934646004,-440.0,0.00017534,2]
[363930266,1748934646014,-608.79,0.00017534,2]
[363930268,1748934646024,-440.0,0.00017534,2]
[363930270,1748934646033,-1744.81,0.00017534,2]
[363930272,1748934646043,-1316.31,0.00017534,2]
[363930273,1748934646052,-440.0,0.00017534,2]
[363930275,1748934646065,-447.75,0.00017534,2]
[363930277,1748934646075,-440.0,0.00017534,2]
[363930278,1748934646085,-440.0,0.00017534,2]
[363930280,1748934646094,-2106.16,0.00017534,2]
[363930282,1748934646103,-440.0,0.00017534,2]
[363930284,1748934646114,-440.0,0.00017534,2]
[363930285,1748934646124,-440.0,0.00017534,2]
[363930287,1748934646133,-572.71620062,0.00017534,2]
[363930289,1748934646145,-1305.99,0.00017534,2]
[363930291,1748934646155,-2155.17,0.00017534,2]
[363930292,1748934646164,-1851.23,0.00017534,2]
[363930294,1748934646174,-925.26,0.00017534,2]
[363930296,1748934646186,-2080.5,0.00017534,2]
[363930298,1748934646196,-928.26,0.00017534,2]
[363930299,1748934646206,-440.0,0.00017534,2]
[363930301,1748934646215,-496.24,0.00017534,2]
[363930303,1748934646225,-448.96,0.00017534,2]
[363930305,1748934646236,-615.52,0.00017534,2]
[363930307,1748934646245,-1764.12,0.00017534,2]
[363930308,1748934646255,-440.0,0.00017534,2]
[363930310,1748934646264,-440.0,0.00017534,2]
[363930312,1748934646273,-440.0,0.00017534,2]
[363930313,1748934646283,-440.0,0.00017534,2]
[363930315,1748934646292,-440.0,0.00017534,2]
[363930317,1748934646301,-332.55,0.00017534,2]
[363930319,1748934646310,-881.76,0.00017534,2]
[363930320,1748934646320,-440.0,0.00017534,2]
[363930322,1748934646329,-151.0,0.00017534,2]
[363930324,1748934646339,-1028.49,0.00017534,2]
[363930326,1748934646349,-756.69,0.00017534,2]
[363930328,1748934646359,-440.0,0.00017534,2]
[363930329,1748934646368,-526.39,0.00017534,2]
[363930331,1748934646377,-151.0,0.00017534,2]
[363930333,1748934646387,-440.0,0.00017534,2]
[363930335,1748934646397,-440.0,0.00017534,2]
[363930336,1748934646407,-501.11559569,0.00017562,2]
[363930338,1748934646418,-522.35728032,0.00017601,2]
[363930340,1748934646429,-193.77934823,0.00017601,2]
[363930342,1748934646439,-1000.0,0.00017601,2]
[363930344,1748934646449,-500.0,0.00017601,2]
[363930345,1748934646460,-1204.717513,0.00017613,2]
[363930347,1748934646471,-1204.717513,0.00017613,2]
[363930349,1748934646481,-1981.43159174,0.00017624,2]
[363930351,1748934646492,-518.95928991,0.000177,2]
[363930353,1748934646501,-402.92,0.00017798,3]
[363930354,1748934646511,-875.8,0.00017807,2]
[363930356,1748934646521,-875.8,0.00017807,2]
[363930358,1748934646532,-320.87885,0.00017808,2]
[363930360,1748934646542,-320.87885,0.00017808,2]
[363930362,1748934646552,-151.0,0.00017808,2]
[363930364,1748934646562,-440.0,0.00017808,2]
[363930366,1748934646573,-440.0,0.00017808,2]
[363930367,1748934646584,-440.0,0.00017808,2]
[363930369,1748934646594,-440.0,0.00017808,2]
[363930371,1748934646603,-440.0,0.00017808,2]
[363930373,1748934646614,-440.0,0.00017808,2]
[363930374,1748934646623,-215.1268,0.00017808,2]
[363930376,1748934646632,-440.0,0.00017808,2]
[363930378,1748934646642,-170.3752096,0.00017808,2]
[363930379,1748934646652,-748.49,0.00017808,2]
[363930380,1748934646662,-440.0,0.00017808,2]
[363930381,1748934646673,-440.0,0.00017808,2]
[363930383,1748934646682,-830.12,0.00017808,2]
[363930384,1748934646692,-440.0,0.00017808,2]
[363930385,1748934646702,-608.79,0.00017808,2]
[363930386,1748934646713,-440.0,0.00017808,2]
[363930387,1748934646722,-1744.81,0.00017808,2]
[363930388,1748934646732,-1316.31,0.00017808,2]
[363930389,1748934646741,-440.0,0.00017808,2]
[363930390,1748934646752,-447.75,0.00017808,2]
[363930391,1748934646762,-440.0,0.00017808,2]
[363930392,1748934646772,-440.0,0.00017808,2]
[363930393,1748934646782,-2106.16,0.00017808,2]
[363930394,1748934646792,-440.0,0.00017808,2]
[363930395,1748934646802,-440.0,0.00017808,2]
[363930396,1748934646811,-440.0,0.00017808,2]
[363930397,1748934646821,-1305.99,0.00017808,2]
[363930398,1748934646831,-2155.17,0.00017808,2]
[363930399,1748934646841,-1851.23,0.00017808,2]
[363930400,1748934646851,-925.26,0.00017808,2]
[363930401,1748934646861,-2080.5,0.00017808,2]
[363930402,1748934646872,-928.26,0.00017808,2]
[363930403,1748934646882,-435.6,0.00017808,2]
[363930404,1748934646892,-496.24,0.00017808,2]
[363930405,1748934646902,-448.96,0.00017808,2]
[363930406,1748934646912,-615.52,0.00017808,2]
[363930407,1748934646922,-1764.12,0.00017808,2]
[363930408,1748934646931,-440.0,0.00017808,2]
[363930409,1748934646941,-554.95,0.00017808,2]
[363930410,1748934646951,-440.0,0.00017808,2]
[363930411,1748934647080,-440.0,0.00017808,2]
[363930412,1748934647090,-440.0,0.00017808,2]
[363930413,1748934647101,-881.76,0.00017808,2]
[363930414,1748934647113,-440.0,0.00017808,2]
[363930415,1748934647123,-1028.49,0.00017808,2]
[363930416,1748934647133,-756.69,0.00017808,2]
[363930417,1748934647143,-440.0,0.00017808,2]
[363930418,1748934647152,-526.39,0.00017808,2]
[363930419,1748934647162,-440.0,0.00017808,2]
[363930420,1748934647172,-440.0,0.00017808,2]
[363930421,1748934647181,-1981.43159174,0.00017866,2]
[363930422,1748934647191,-208.6,0.00018,2]
[363930423,1748934647201,-1520.41100821,0.00018014,2]
[363930424,1748934647211,-875.8,0.00018079,2]
[363930425,1748934647221,-1000.0,0.0001808,7]
[363930426,1748934647231,-1000.0,0.0001808,2]
[363930427,1748934647240,-1000.0,0.0001808,2]
[363930428,1748934647250,-1000.0,0.0001808,7]
[363930429,1748934647260,-1000.0,0.0001808,7]
[363930430,1748934647270,-1000.0,0.0001808,7]
[363930431,1748934647279,-1000.0,0.00018081,7]
[363930432,1748934647291,-875.8,0.00018081,2]
[363930433,1748934647300,-1006.7984358,0.00018082,2]
[363930434,1748934647310,-1016.1585272,0.00018082,2]
[363930435,1748934647320,-286.846693,0.00018082,2]
[363930436,1748934647331,-151.0,0.00018082,2]
[363930437,1748934647341,-151.0,0.00018082,2]
[363930438,1748934647351,-151.0,0.00018082,2]
[363930439,1748934647360,-335.359597,0.00018082,2]
[363930440,1748934647370,-335.359597,0.00018082,2]
[363930441,1748934647380,-440.0,0.00018082,2]
[363930442,1748934647391,-440.0,0.00018082,2]
[363930443,1748934647402,-440.0,0.00018082,2]
[363930444,1748934647411,-440.0,0.00018082,2]
[363930445,1748934647421,-440.0,0.00018082,2]
[363930446,1748934647432,-440.0,0.00018082,2]
[363930447,1748934647443,-151.0,0.00018082,2]
[363930448,1748934647454,-440.0,0.00018082,2]
[363930449,1748934647464,-748.49,0.00018082,2]
[363930450,1748934647475,-440.0,0.00018082,2]
[363930451,1748934647484,-151.0,0.00018082,2]
[363930452,1748934647494,-151.0,0.00018082,2]
[363930453,1748934647504,-440.0,0.00018082,2]
[363930454,1748934647514,-830.12,0.00018082,2]
[363930455,1748934647524,-440.0,0.00018082,2]
[363930456,1748934647533,-608.79,0.00018082,2]
[363930457,1748934647543,-473.68,0.00018082,2]
[363930458,1748934647553,-1744.81,0.00018082,2]
[363930459,1748934647563,-1316.31,0.00018082,2]
[363930460,1748934647573,-440.0,0.00018082,2]
[363930461,1748934647583,-447.75,0.00018082,2]
[363930462,1748934647593,-440.0,0.00018082,2]
[363930463,1748934647603,-440.0,0.00018082,2]
[363930464,1748934647614,-2106.16,0.00018082,2]
[363930465,1748934647625,-310.0,0.00018082,2]
[363930466,1748934647635,-440.0,0.00018082,2]
[363930467,1748934647645,-440.0,0.00018082,2]
[363930468,1748934647655,-1305.99,0.00018082,2]
[363930469,1748934647666,-2155.17,0.00018082,2]
[363930470,1748934647676,-1851.23,0.00018082,2]
[363930471,1748934647685,-925.26,0.00018082,2]
[363930472,1748934647696,-2080.5,0.00018082,2]
[363930473,1748934647706,-928.26,0.00018082,2]
[363930474,1748934647716,-496.24,0.00018082,2]
[363930475,1748934647725,-448.96,0.00018082,2]
[363930476,1748934647745,-615.52,0.00018082,2]
[363930477,1748934647757,-1764.12,0.00018082,2]
[363930478,1748934647767,-440.0,0.00018082,2]
[363930479,1748934647778,-151.0,0.00018082,2]
[363930480,1748934647788,-440.0,0.00018082,2]
[363930481,1748934647798,-440.0,0.00018082,2]
[363930482,1748934647808,-440.0,0.00018082,2]
[363930483,1748934647818,-881.76,0.00018082,2]
[363930484,1748934647829,-552.92767852,0.00018082,2]
[363930485,1748934647839,-307.325327,0.00018082,2]
[363930486,1748934647850,-307.325327,0.00018082,2]
[363930487,1748934647860,-1028.49,0.00018082,2]
[363930488,1748934647870,-756.69,0.00018082,2]
[363930489,1748934647881,-440.0,0.00018082,2]
[363930490,1748934647891,-526.39,0.00018082,2]
[363930491,1748934647901,-440.0,0.00018082,2]
[363930492,1748934647911,-440.0,0.00018082,2]
[363930493,1748934647922,-1981.43159174,0.00018107,2]
[363930494,1748934647932,-3616.53344057,0.00018118,2]
[363930495,1748934647942,-500.0,0.00018149,2]
[363930496,1748934647952,-229.42821335,0.00018151,2]